fUSD/lending_fUSD_20250606
["ID","MTS","AMOUNT","RATE_DAILY","PERIOD"]
[364673656,1749195062777,-151.0,0.00030328,7]
[364673657,1749195062787,-239.241534,0.00030328,7]
[364673658,1749195062800,-239.241534,0.00030328,7]
[364673659,1749195062810,-480.0,0.00030328,7]
[364673660,1749195062820,-1829.73,0.00030328,7]
[364673661,1749195062830,-1014.46,0.00030328,7]
[364673662,1749195062840,-1745.74,0.00030328,7]
[364673663,1749195062850,-480.0,0.00030328,7]
[364673664,1749195062860,-480.0,0.00030328,7]
[364673665,1749195062869,-480.0,0.00030328,7]
[364673666,1749195062879,-239.241534,0.00030328,7]
[364673667,1749195062889,-239.241534,0.00030328,7]
[364673668,1749195062900,-480.0,0.00030328,7]
[364673669,1749195062910,-480.0,0.00030328,7]
[364673670,1749195062920,-1071.48,0.00030328,7]
[364673671,1749195062930,-480.0,0.00030328,7]
[364673672,1749195062941,-480.0,0.00030328,7]
[364673673,1749195062954,-460.0,0.00030328,7]
[364673674,1749195062964,-1415.9,0.00030328,7]
[364673675,1749195062975,-609.11,0.00030328,7]
[364673676,1749195062984,-10675.65,0.00030328,7]
[364673677,1749195062994,-480.0,0.00030328,7]
[364673678,1749195063004,-480.0,0.00030328,7]
[364673679,1749195063014,-480.0,0.00030328,7]
[364673680,1749195063024,-489.83473255,0.00030328,7]
[364673681,1749195063034,-2106.24,0.00030328,7]
[364673682,1749195063045,-892.65,0.00030328,7]
[364673683,1749195063055,-2026.78,0.00030328,7]
[364673684,1749195063066,-263.16208349,0.00030328,7]
[364673685,1749195063076,-480.0,0.00030328,7]
[364673686,1749195063087,-3353.82,0.00030328,7]
[364673687,1749195063096,-480.0,0.00030328,7]
[364673688,1749195063107,-1044.12,0.00030328,7]
[364673689,1749195063119,-480.0,0.00030328,7]
[364673690,1749195063129,-2056.04,0.00030328,7]
[364673691,1749195063140,-480.0,0.00030328,7]
[364673692,1749195063151,-1485.03,0.00030328,7]
[364673693,1749195063161,-151.0,0.00030328,7]
[364673694,1749195063172,-894.72,0.00030328,7]
[364673695,1749195063182,-5331.78,0.00030328,7]
[364673696,1749195063192,-151.0,0.00030328,7]
[364673697,1749195063202,-5244.54,0.00030328,7]
[364673698,1749195063212,-491.30183378,0.00030328,7]
[364673699,1749195063222,-480.0,0.00030328,7]
[364673700,1749195063232,-151.0,0.00030328,7]
[364673701,1749195063242,-623.90769779,0.00030328,7]
[364673702,1749195063252,-151.0,0.00030328,7]
[364673703,1749195063262,-480.0,0.00030328,7]
[364673704,1749195063272,-1252.03,0.00030328,7]
[364673705,1749195063282,-204.771268,0.00030328,7]
[364673706,1749195063291,-204.771268,0.00030328,7]
[364673707,1749195063301,-151.0,0.00030328,7]
[364673708,1749195063317,-496.19,0.00030328,7]
[364673709,1749195063340,-151.0,0.00030328,7]
[364673710,1749195063361,-2497.24,0.00030328,7]
[364673711,1749195063383,-1074.2,0.00030328,7]
[364673712,1749195063411,-480.0,0.00030328,7]
[364673713,1749195063446,-151.0,0.00030328,7]
[364673714,1749195063485,-480.0,0.00030328,7]
[364673715,1749195063517,-480.0,0.00030328,7]
[364673716,1749195063559,-480.0,0.00030328,7]
[364673717,1749195063598,-204.771268,0.00030328,7]
[364673718,1749195063612,-204.771268,0.00030328,7]
[364673719,1749195063624,-480.0,0.00030328,7]
[364673720,1749195063634,-2043.06,0.00030328,7]
[364673721,1749195063645,-151.0,0.00030328,7]
[364673722,1749195063655,-151.0,0.00030328,7]
[364673723,1749195063666,-480.0,0.00030328,7]
[364673724,1749195063677,-480.0,0.00030328,7]
[364673725,1749195063687,-480.0,0.00030328,7]
[364673726,1749195063698,-1410.64,0.00030328,7]
[364673727,1749195063708,-721.27,0.00030328,7]
[364673728,1749195063719,-480.0,0.00030328,7]
[364673729,1749195063729,-735.38,0.00030328,7]
[364673730,1749195063739,-1593.16,0.00030328,7]
[364673731,1749195063967,-1896.04,0.00030328,7]
[364673732,1749195063978,-453.537922,0.00030328,7]
[364673733,1749195063988,-480.0,0.00030328,7]
[364673734,1749195063998,-453.537922,0.00030328,7]
[364673735,1749195064007,-954.54,0.00030328,7]
[364673736,1749195064018,-207.98866974,0.00030328,7]
[364673737,1749195064029,-5092.66,0.00030328,7]
[364673738,1749195064040,-480.0,0.00030328,7]
[364673739,1749195064051,-480.0,0.00030328,7]
[364673740,1749195064061,-480.0,0.00030328,7]
[364673741,1749195064071,-453.537922,0.00030328,7]
[364673742,1749195064080,-480.0,0.00030328,7]
[364673743,1749195064090,-453.537922,0.00030328,7]
[364673744,1749195064100,-732.66,0.00030328,7]
[364673745,1749195064109,-480.0,0.00030328,7]
[364673746,1749195064119,-480.0,0.00030328,7]
[364673747,1749195064128,-2684.8,0.00030328,7]
[364673748,1749195064138,-690.02,0.00030328,7]
[364673749,1749195064149,-749.27,0.00030328,7]
[364673750,1749195064158,-1191.278394,0.00030328,7]
[364673751,1749195064168,-1631.58,0.00030328,7]
[364673752,1749195064178,-1191.278394,0.00030328,7]
[364673753,1749195064187,-480.0,0.00030328,7]
[364673754,1749195064197,-621.64,0.00030328,7]
[364673755,1749195064207,-535.31,0.00030328,7]
[364673756,1749195064216,-492.23874236,0.00030328,7]
[364673757,1749195064225,-1384.95,0.00030328,7]
[364673758,1749195064235,-1562.21,0.00030328,7]
[364673759,1749195064244,-488.82154599,0.00030328,7]
[364673760,1749195064253,-480.0,0.00030328,7]
[364673761,1749195064263,-480.0,0.00030328,7]
[364673762,1749195064272,-18294.64,0.00030328,7]
[364673763,1749195064282,-1191.278394,0.00030328,7]
[364673764,1749195064292,-894.81,0.00030328,7]
[364673765,1749195064301,-1191.278394,0.00030328,7]
[364673766,1749195064311,-1115.23,0.00030328,7]
[364673767,1749195064321,-4575.79,0.00030328,7]
[364673768,1749195064331,-480.0,0.00030328,7]
[364673769,1749195064340,-480.0,0.00030328,7]
[364673770,1749195064350,-480.0,0.00030328,7]
[364673771,1749195064360,-480.0,0.00030328,7]
[364673772,1749195064370,-486.36135714,0.00030328,7]
[364673773,1749195064380,-854.68,0.00030328,7]
[364673774,1749195064390,-480.0,0.00030328,7]
[364673775,1749195064402,-480.0,0.00030328,7]
[364673776,1749195064412,-480.0,0.00030328,7]
[364673777,1749195064422,-695.12,0.00030328,7]
[364673778,1749195064432,-650.15,0.00030328,7]
[364673779,1749195064442,-586.88,0.00030328,7]
[364673780,1749195064452,-480.0,0.00030328,7]
[364673781,1749195064462,-6273.93,0.00030328,7]
[364673782,1749195064472,-784.29,0.00030328,7]
[364673783,1749195064482,-480.0,0.00030328,7]
[364673784,1749195064494,-501.87,0.00030328,7]
[364673785,1749195064504,-648.911723,0.00030328,7]
[364673786,1749195064514,-648.911723,0.00030328,7]
[364673787,1749195064525,-480.0,0.00030328,7]
[364673788,1749195064535,-487.54297005,0.00030328,7]
[364673789,1749195064545,-480.0,0.00030328,7]
[364673790,1749195064555,-220.0,0.00030328,2]
[364673791,1749195064565,-1393.37,0.00030328,7]
[364673792,1749195064575,-480.0,0.00030328,7]
[364673793,1749195064586,-480.0,0.00030328,7]
[364673794,1749195064596,-363.3062526,0.00030328,3]
[364673795,1749195064606,-1018.89,0.00030328,7]
[364673796,1749195064616,-2222.98,0.00030328,7]
[364673797,1749195064626,-648.911723,0.00030328,7]
[364673798,1749195064636,-701.3,0.00030328,7]
[364673799,1749195064647,-648.911723,0.00030328,7]
[364673800,1749195064657,-499.77647332,0.00030328,7]
[364673801,1749195064667,-480.0,0.00030328,7]
[364673802,1749195064677,-480.0,0.00030328,7]
[364673803,1749195064687,-427.64601858,0.00030328,7]
[364673804,1749195064697,-155.152848,0.00030328,7]
[364673805,1749195064706,-166.391649,0.00030328,7]
[364673806,1749195064716,-155.152848,0.00030328,7]
[364673807,1749195064728,-166.391649,0.00030328,7]
[364673808,1749195064738,-838.48,0.00030328,7]
[364673809,1749195064748,-480.0,0.00030328,7]
[364673810,1749195064758,-480.0,0.00030328,7]
[364673811,1749195064768,-2372.89,0.00030328,7]
[364673812,1749195064781,-894.02,0.00030328,7]
[364673813,1749195064792,-480.0,0.00030328,7]
[364673814,1749195064805,-480.0,0.00030328,7]
[364673815,1749195064814,-7451.07,0.00030328,7]
[364673816,1749195064824,-251.61837732,0.00030328,7]
[364673817,1749195064834,-2119.73,0.00030328,7]
[364673818,1749195064845,-480.0,0.00030328,7]
[364673819,1749195064854,-155.152848,0.00030328,7]
[364673820,1749195064864,-166.391649,0.00030328,7]
[364673821,1749195064874,-155.152848,0.00030328,7]
[364673822,1749195064884,-166.391649,0.00030328,7]
[364673823,1749195064895,-480.0,0.00030328,7]
[364673824,1749195064906,-1031.14,0.00030328,7]
[364673825,1749195064915,-480.0,0.00030328,7]
[364673826,1749195064926,-480.0,0.00030328,7]
[364673827,1749195064936,-480.0,0.00030328,7]
[364673828,1749195064946,-953.26,0.00030328,7]
[364673829,1749195064956,-151.0,0.00030328,7]
[364673830,1749195064966,-151.0,0.00030328,7]
[364673831,1749195064976,-545.98,0.00030328,7]
[364673832,1749195064987,-981.45,0.00030328,7]
[364673833,1749195064997,-665.71,0.00030328,7]
[364673834,1749195065010,-460.0,0.00030328,7]
[364673835,1749195065020,-487.81856125,0.00030328,7]
[364673836,1749195065030,-1003.28,0.00030328,7]
[364673837,1749195065040,-502.03,0.00030328,7]
[364673838,1749195065050,-599.66,0.00030328,7]
[364673839,1749195065060,-3222.48,0.00030328,7]
[364673840,1749195065069,-642.87,0.00030328,2]
[364673841,1749195065079,-480.0,0.00030328,7]
[364673842,1749195065089,-895.35,0.00030328,7]
[364673843,1749195065099,-13954.29,0.00030328,7]
[364673844,1749195065110,-480.0,0.00030328,7]
[364673845,1749195065120,-821.63,0.00030328,7]
[364673846,1749195065130,-1239.07,0.00030328,7]
[364673847,1749195065140,-2507.72,0.00030328,7]
[364673848,1749195065152,-21187.12,0.00030328,7]
[364673849,1749195065162,-1029.37,0.00030328,7]
[364673850,1749195065172,-1188.22,0.00030328,7]
[364673851,1749195065182,-480.0,0.00030328,7]
[364673852,1749195065192,-1023.07,0.00030328,2]
[364673853,1749195065202,-151.0,0.00030328,7]
[364673854,1749195065212,-1061.28,0.00030328,7]
[364673855,1749195065222,-151.0,0.00030328,7]
[364673856,1749195065232,-491.4751328,0.00030328,7]
[364673857,1749195065242,-4145.62,0.00030328,7]
[364673858,1749195065252,-480.0,0.00030328,7]
[364673859,1749195065262,-585.37,0.00030328,7]
[364673860,1749195065273,-246.05266771,0.00030328,7]
[364673861,1749195065282,-480.0,0.00030328,7]
[364673862,1749195065292,-151.0,0.00030328,7]
[364673863,1749195065301,-265.507238,0.00030328,7]
[364673864,1749195065311,-480.0,0.00030328,7]
[364673865,1749195065321,-225.386893,0.00030328,7]
[364673866,1749195065331,-480.0,0.00030328,7]
[364673867,1749195065342,-480.0,0.00030328,7]
[364673868,1749195065351,-867.72,0.00030328,7]
[364673869,1749195065361,-81999.01,0.00030328,7]
[364673870,1749195065371,-823.56,0.00030328,7]
[364673871,1749195065382,-818.4,0.00030328,7]
[364673872,1749195065392,-569.32913755,0.00030328,7]
[364673873,1749195065405,-480.0,0.00030328,7]
[364673874,1749195065416,-2369.76,0.00030328,7]
[364673875,1749195065426,-883.58,0.00030328,7]
[364673876,1749195065437,-480.0,0.00030328,7]
[364673877,1749195065447,-1414.72431,0.00030328,7]
[364673878,1749195065458,-1414.72431,0.00030328,7]
[364673879,1749195065468,-480.0,0.00030328,7]
[364673880,1749195065478,-1357.61,0.00030328,7]
[364673881,1749195065489,-1145.19,0.00030328,7]
[364673882,1749195065499,-225.386893,0.00030328,7]
[364673883,1749195065509,-480.0,0.00030328,7]
[364673884,1749195065519,-1168.31,0.00030328,7]
[364673885,1749195065528,-1414.72431,0.00030328,7]
[364673886,1749195065539,-480.0,0.00030328,7]
[364673887,1749195065549,-1414.72431,0.00030328,7]
[364673888,1749195065558,-484.36215884,0.00030328,7]
[364673889,1749195065569,-1706.77,0.00030328,7]
[364673890,1749195065592,-480.0,0.00030328,7]
[364673891,1749195065603,-516.74305868,0.00030328,7]
[364673892,1749195065612,-150.0,0.00030329,2]
[364673893,1749195065622,-150.0,0.00030335,2]
[364673894,1749195065631,-150.0,0.0003034,2]
[364673895,1749195065642,-2000.0,0.00030341,3]
[364673896,1749195065655,-151.0,0.00030341,7]
[364673897,1749195065666,-151.0,0.00030341,7]
[364673898,1749195065676,-151.0,0.00030341,7]
[364673899,1749195065685,-212.018929,0.00030341,7]
[364673900,1749195065696,-212.018929,0.00030341,7]
[364673901,1749195065706,-151.0,0.00030341,7]
[364673902,1749195065715,-151.0,0.00030341,7]
[364673903,1749195065725,-151.0,0.00030341,7]
[364673904,1749195065735,-228.303968,0.00030341,7]
[364673905,1749195065745,-151.0,0.00030341,7]
[364673906,1749195065754,-173.968834,0.00030341,7]
[364673907,1749195065764,-151.0,0.00030341,7]
[364673908,1749195065773,-151.0,0.00030341,7]
[364673909,1749195065783,-151.0,0.00030341,7]
[364673910,1749195065795,-225.386893,0.00030341,7]
[364673911,1749195065804,-225.386893,0.00030341,7]
[364673912,1749195065814,-150.0,0.00030348,2]
[364673913,1749195065823,-150.0,0.00030351,2]
[364673914,1749195065833,-1000.0,0.00030352,2]
[364673915,1749195065842,-1000.0,0.00030358,2]
[364673916,1749195065852,-288.55200591,0.00030364,2]
[364673917,1749195065863,-506.74011738,0.00030373,5]
[364673918,1749195065874,-150.0,0.00030373,2]
[364673919,1749195065883,-150.0,0.00030378,2]
[364673920,1749195065893,-240.23264554,0.00030383,22]
[364673921,1749195065903,-215.0738,0.00030384,2]
[364673922,1749195065913,-500.0,0.00030385,2]
[364673923,1749195065923,-500.0,0.00030385,2]
[364673924,1749195065933,-500.0,0.00030385,2]
[364673925,1749195065942,-150.0,0.00030385,2]
[364673926,1749195065952,-150.0,0.00030385,2]
[364673927,1749195065962,-500.0,0.00030385,2]
[364673928,1749195065972,-500.0,0.00030385,2]
[364673929,1749195065982,-150.0,0.00030385,2]
[364673930,1749195065992,-500.0,0.00030385,2]
[364673931,1749195066001,-1552.0,0.00030385,2]
[364673932,1749195066011,-150.0,0.00030385,2]
[364673933,1749195066020,-178.7725347,0.00030385,2]
[364673934,1749195066030,-209.7775355,0.00030385,2]
[364673935,1749195066039,-500.0,0.00030385,2]
[364673936,1749195066049,-500.0,0.00030385,2]
[364673937,1749195066058,-1387.0,0.00030385,2]
[364673938,1749195066068,-500.0,0.00030385,2]
[364673939,1749195066077,-150.0,0.00030385,2]
[364673940,1749195066087,-527.0,0.00030385,2]
[364673941,1749195066096,-500.0,0.00030385,2]
[364673942,1749195066106,-500.0,0.00030385,2]
[364673943,1749195066115,-150.0,0.00030385,2]
[364673944,1749195066124,-419.0,0.00030385,2]
[364673945,1749195066133,-500.0,0.00030385,2]
[364673946,1749195066143,-500.0,0.00030385,2]
[364673947,1749195066154,-500.0,0.00030385,2]
[364673948,1749195066163,-500.0,0.00030385,2]
[364673949,1749195066173,-500.0,0.00030385,2]
[364673950,1749195066182,-150.0,0.00030385,2]
[364673951,1749195066191,-500.0,0.00030385,2]
[364673952,1749195066201,-500.0,0.00030392,7]
[364673953,1749195066210,-300.0,0.00030393,2]
[364673954,1749195066219,-150.0,0.00030393,2]
[364673955,1749195066228,-5383.71844317,0.00030393,2]
[364673956,1749195066237,-150.0,0.00030397,2]
[364673957,1749195066247,-150.0,0.00030397,2]
[364673958,1749195066256,-159.0,0.000304,22]
[364673959,1749195066264,-150.0,0.00030402,2]
[364673960,1749195066274,-812.2,0.00030412,7]
[364673961,1749195066283,-500.0,0.00030412,2]
[364673962,1749195066292,-500.0,0.00030412,2]
[364673963,1749195066301,-500.0,0.00030412,2]
[364673964,1749195066310,-150.0,0.00030412,2]
[364673965,1749195066319,-150.0,0.00030412,2]
[364673966,1749195066329,-500.0,0.00030412,2]
[364673967,1749195066407,-500.0,0.00030412,2]
[364673968,1749195066417,-150.0,0.00030412,2]
[364673969,1749195066426,-500.0,0.00030412,2]
[364673970,1749195066435,-1552.0,0.00030412,2]
[364673971,1749195066445,-150.0,0.00030412,2]
[364673972,1749195066455,-500.0,0.00030412,2]
[364673973,1749195066463,-500.0,0.00030412,2]
[364673974,1749195066472,-1387.0,0.00030412,2]
[364673975,1749195066482,-500.0,0.00030412,2]
[364673976,1749195066491,-527.0,0.00030412,2]
[364673977,1749195066501,-500.0,0.00030412,2]
[364673978,1749195066511,-500.0,0.00030412,2]
[364673979,1749195066520,-150.0,0.00030412,2]
[364673980,1749195066529,-419.0,0.00030412,2]
[364673981,1749195066538,-500.0,0.00030412,2]
[364673982,1749195066548,-500.0,0.00030412,2]
[364673983,1749195066558,-500.0,0.00030412,2]
[364673984,1749195066574,-500.0,0.00030412,2]
[364673985,1749195066583,-500.0,0.00030412,2]
[364673986,1749195066592,-150.0,0.00030412,2]
[364673987,1749195066602,-500.0,0.00030412,2]
[364673988,1749195066611,-1000.0,0.00030417,2]
[364673989,1749195066620,-150.0,0.00030423,2]
[364673990,1749195066629,-150.0,0.00030425,2]
[364673991,1749195066638,-150.0,0.00030425,2]
[364673992,1749195066648,-150.0,0.0003043,2]
[364673993,1749195066658,-287.6013756,0.00030431,2]
[364673994,1749195066668,-763.56,0.00030439,7]
[364673995,1749195066678,-500.0,0.0003044,2]
[364673996,1749195066687,-500.0,0.0003044,2]
[364673997,1749195066696,-396.43125565,0.0003044,2]
[364673998,1749195066705,-200.0,0.0003044,2]
[364673999,1749195066715,-200.0,0.0003044,2]
[364674000,1749195066724,-500.0,0.0003044,2]
[364674001,1749195066734,-500.0,0.0003044,2]
[364674002,1749195066743,-150.0,0.0003044,2]
[364674003,1749195066752,-500.0,0.0003044,2]
[364674004,1749195066760,-1552.0,0.0003044,2]
[364674005,1749195066770,-150.0,0.0003044,2]
[364674006,1749195066779,-500.0,0.0003044,2]
[364674007,1749195066789,-184.426074,0.0003044,2]
[364674008,1749195066803,-1387.0,0.0003044,2]
[364674009,1749195066812,-604.34453879,0.0003044,2]
[364674010,1749195066821,-527.0,0.0003044,2]
[364674011,1749195066830,-500.0,0.0003044,2]
[364674012,1749195066840,-261.51976516,0.0003044,2]
[364674013,1749195066849,-150.0,0.0003044,2]
[364674014,1749195066858,-419.0,0.0003044,2]
[364674015,1749195066867,-500.0,0.0003044,2]
[364674016,1749195066876,-500.0,0.0003044,2]
[364674017,1749195066886,-500.0,0.0003044,2]
[364674018,1749195066896,-500.0,0.0003044,2]
[364674019,1749195066905,-351.16496896,0.0003044,2]
[364674020,1749195066914,-150.0,0.0003044,2]
[364674021,1749195066924,-500.0,0.0003044,2]
[364674022,1749195066932,-150.0,0.00030441,2]
[364674023,1749195066941,-150.0,0.00030449,2]
[364674024,1749195066951,-150.0,0.00030454,2]
[364674025,1749195066959,-500.0,0.00030467,2]
[364674026,1749195066969,-500.0,0.00030467,2]
[364674027,1749195066978,-202.95022155,0.00030467,2]
[364674028,1749195066987,-500.0,0.00030467,2]
[364674029,1749195066996,-1552.0,0.00030467,2]
[364674030,1749195067005,-150.0,0.00030467,2]
[364674031,1749195067015,-500.0,0.00030467,2]
[364674032,1749195067024,-1387.0,0.00030467,2]
[364674033,1749195067032,-527.0,0.00030467,2]
[364674034,1749195067041,-500.0,0.00030467,2]
[364674035,1749195067050,-150.0,0.00030467,2]
[364674036,1749195067059,-419.0,0.00030467,2]
[364674037,1749195067068,-500.0,0.00030467,2]
[364674038,1749195067077,-500.0,0.00030467,2]
[364674039,1749195067086,-208.18176395,0.00030467,2]
[364674040,1749195067095,-158.57695402,0.00030467,2]
[364674041,1749195067104,-189.65917592,0.00030467,2]
[364674042,1749195067113,-500.0,0.00030467,2]
[364674043,1749195067123,-456.72,0.00030476,2]
[364674044,1749195067132,-150.0,0.00030478,2]
[364674045,1749195067141,-150.0,0.00030482,2]
[364674046,1749195067151,-500.0,0.00030483,2]
[364674047,1749195067160,-514.22,0.00030483,7]
[364674048,1749195067169,-151.0,0.00030483,7]
[364674049,1749195067179,-907.782064,0.00030483,7]
[364674050,1749195067187,-907.782064,0.00030483,7]
[364674051,1749195067196,-151.0,0.00030484,7]
[364674052,1749195067205,-151.0,0.00030484,7]
[364674053,1749195067214,-207.475781,0.00030484,7]
[364674054,1749195067223,-152.183462,0.00030484,7]
[364674055,1749195067232,-205.948352,0.00030484,7]
[364674056,1749195067241,-151.0,0.00030484,7]
[364674057,1749195067250,-151.0,0.00030484,7]
[364674058,1749195067259,-151.0,0.00030484,7]
[364674059,1749195067268,-154.495129,0.00030484,7]
[364674060,1749195067276,-151.0,0.00030484,7]
[364674061,1749195067286,-151.0,0.00030484,7]
[364674062,1749195067295,-164.570623,0.00030484,7]
[364674063,1749195067304,-151.0,0.00030484,7]
[364674064,1749195067313,-151.0,0.00030484,7]
[364674065,1749195067322,-233.057191,0.00030484,7]
[364674066,1749195067331,-159.858197,0.00030484,7]
[364674067,1749195067340,-421.134473,0.00030484,7]
[364674068,1749195067350,-421.134473,0.00030484,7]
[364674069,1749195067359,-335.222175,0.00030484,7]
[364674070,1749195067368,-335.222175,0.00030484,7]
[364674071,1749195067377,-175.59823,0.00030484,7]
[364674072,1749195067387,-191.964947,0.00030484,7]
[364674073,1749195067396,-191.964947,0.00030484,7]
[364674074,1749195067405,-151.0,0.00030484,7]
[364674075,1749195067414,-253.567617,0.00030484,7]
[364674076,1749195067423,-253.567617,0.00030484,7]
[364674077,1749195067432,-151.0,0.00030484,7]
[364674078,1749195067441,-151.0,0.00030484,7]
[364674079,1749195067451,-150.0,0.00030484,2]
[364674080,1749195067460,-500.0,0.00030492,2]
[364674081,1749195067470,-500.0,0.00030492,2]
[364674082,1749195067479,-504.11966003,0.00030492,2]
[364674083,1749195067488,-514.22,0.00030492,7]
[364674084,1749195067497,-514.22,0.00030492,7]
[364674085,1749195067507,-514.22,0.00030492,7]
[364674086,1749195067516,-500.0,0.00030492,7]
[364674087,1749195067525,-500.0,0.00030492,7]
[364674088,1749195067535,-763.56,0.00030492,7]
[364674089,1749195067544,-763.56,0.00030492,7]
[364674090,1749195067554,-763.56,0.00030492,7]
[364674091,1749195067563,-812.2,0.00030492,7]
[364674092,1749195067572,-812.2,0.00030492,7]
[364674093,1749195067592,-812.2,0.00030492,7]
[364674094,1749195067602,-9794.95,0.00030492,7]
[364674095,1749195067611,-9794.95,0.00030492,7]
[364674096,1749195067620,-9794.95,0.00030492,7]
[364674097,1749195067630,-9794.95,0.00030492,7]
[364674098,1749195067639,-9794.95,0.00030492,7]
[364674099,1749195067651,-9795.05196573,0.00030492,7]
[364674100,1749195067661,-151.0,0.00030493,7]
[364674101,1749195067671,-151.0,0.00030493,7]
[364674102,1749195067680,-151.0,0.00030493,7]
[364674103,1749195067690,-151.0,0.00030493,7]
[364674104,1749195067699,-151.0,0.00030493,7]
[364674105,1749195067709,-151.0,0.00030493,7]
[364674106,1749195067718,-151.0,0.00030493,7]
[364674107,1749195067727,-151.0,0.00030493,7]
[364674108,1749195067736,-151.0,0.00030493,7]
[364674109,1749195067745,-151.0,0.00030493,7]
[364674110,1749195067754,-151.0,0.00030493,7]
[364674111,1749195067763,-151.0,0.00030493,7]
[364674112,1749195067771,-151.0,0.00030493,7]
[364674113,1749195067780,-480.0,0.00030493,7]
[364674114,1749195067790,-480.0,0.00030493,7]
[364674115,1749195067803,-480.0,0.00030493,7]
[364674116,1749195067812,-162.344159,0.00030493,7]
[364674117,1749195067822,-480.0,0.00030493,7]
[364674118,1749195067831,-480.0,0.00030493,7]
[364674119,1749195067842,-480.0,0.00030493,7]
[364674120,1749195067851,-151.0,0.00030493,7]
[364674121,1749195067860,-250.0,0.00030493,7]
[364674122,1749195067871,-480.0,0.00030493,7]
[364674123,1749195067880,-480.0,0.00030493,7]
[364674124,1749195067890,-529.77603538,0.00030493,7]
[364674125,1749195067900,-480.0,0.00030493,7]
[364674126,1749195067909,-161.608265,0.00030493,7]
[364674127,1749195067918,-480.0,0.00030493,7]
[364674128,1749195067927,-480.0,0.00030493,7]
[364674129,1749195067936,-494.21545318,0.00030493,7]
[364674130,1749195067946,-639.09,0.00030493,7]
[364674131,1749195067955,-403.40348865,0.00030493,7]
[364674132,1749195067965,-480.0,0.00030493,7]
[364674133,1749195067974,-480.0,0.00030493,7]
[364674134,1749195067983,-498.18121221,0.00030493,7]
[364674135,1749195067992,-480.0,0.00030493,7]
[364674136,1749195068001,-151.0,0.00030493,7]
[364674137,1749195068010,-411.62581981,0.00030493,7]
[364674138,1749195068019,-480.0,0.00030493,7]
[364674139,1749195068028,-480.0,0.00030493,7]
[364674140,1749195068037,-480.0,0.00030493,7]
[364674141,1749195068047,-434.70904521,0.00030493,7]
[364674142,1749195068056,-480.0,0.00030493,7]
[364674143,1749195068065,-480.0,0.00030493,7]
[364674144,1749195068073,-480.0,0.00030493,7]
[364674145,1749195068082,-480.0,0.00030493,7]
[364674146,1749195068092,-480.0,0.00030493,7]
[364674147,1749195068101,-480.0,0.00030493,7]
[364674148,1749195068109,-153.74537542,0.00030493,7]
[364674149,1749195068119,-499.23357579,0.00030493,7]
[364674150,1749195068128,-421.134473,0.00030493,7]
[364674151,1749195068137,-421.134473,0.00030493,7]
[364674152,1749195068146,-480.0,0.00030493,7]
[364674153,1749195068155,-480.0,0.00030493,7]
[364674154,1749195068164,-535.07,0.00030493,7]
[364674155,1749195068174,-480.0,0.00030493,7]